[Event "Swedish Championship U20 2022"]
[Site "Uppsala"]
[Date "2022.07.04"]
[Round "3.1"]
[White "Wernberg, Hugo"]
[Black "Olsson, William"]
[Result "0-1"]
[ECO "B51"]
[WhiteElo "2316"]
[BlackElo "2284"]
[Annotator "TA"]
[PlyCount "128"]
[EventDate "2022.07.01"]
[EventType "tourn"]
[EventCountry "SWE"]
[SourceTitle "playchess.com"]
[Source "ChessBase"]
[SourceQuality "1"]
[TimeControl "40/5400+30:1800+30"]

{[%evp 9,128,17,27,29,31,18,26,7,21,12,21,12,14,12,26,0,0,-12,0,-24,-7,-45,-28,-48,-3,-16,-17,-9,-11,-43,-28,-31,0,0,-16,-21,0,0,0,-29,-44,-34,-31,-81,-83,-135,-92,-115,-104,-121,-52,-78,-74,-87,-66,-64,-53,-54,-51,-52,-69,-73,-69,-221,-55,-318,-41,-214,-216,-210,-209,-387,-387,-431,-431,-463,-387,-381,-197,-204,-216,-214,-199,-212,-186,-171,-156,-248,-185,-150,-183,-373,-336,-445,-453,-1433,-1245,-1146,-1206,-1084,-486,-452,0,-1048,-1040,-29989,-29990,-29990,-29991,-29991,-29991,-29991,-29979,-29979,-29979,-29979,-1144,-29981,-29982,-29980,-29981]} 1. e4 {[%emt 0:00:03]} c5 {[%emt 0:00:04]} 2. Nf3 {[%emt 0:00:06]} d6 {[%emt 0:00:03]} 3. Bb5+ {[%emt 0:00:06]} Nd7 {[%emt 0:00:05]} 4. Ba4 {[%emt 0:00:06]} Ngf6 {[%emt 0:00:12]} 5. O-O {[%emt 0:00:07]} e5 {[%emt 0:00:40]} 6. d3 {[%emt 0:01:05] B51: Sicilian: Moscow Variation (3 Bb5+) without 3...Bd7.} Be7 {[%emt 0:00:07]} 7. Re1 {[%emt 0:16:34]} O-O {[%emt 0:01:31]} 8. c3 {[%emt 0:01:24] [#] White has an edge.} Rb8 $146 {[%emt 0:01:46]} ({Predecessor:} 8... Qc7 9. Bc2 Re8 10. Nbd2 d5 11. Bb3 c4 12. dxc4 dxe4 13. Ng5 h6 14. Ngxe4 b6 {0-1 (29) Ferreira,J (1840)-Saraiva,A (1863) Rio de Janeiro 2017}) 9. Bc2 {[%emt 0:03:41]} b5 {[%emt 0:01:07]} 10. Nbd2 {[%emt 0:02:55]} Re8 {[%emt 0:02:57]} 11. Nf1 {[%emt 0:02:27]} Bf8 {[%emt 0:00:53]} 12. h3 {[%emt 0:09:13]} Bb7 {[%emt 0:05:59]} 13. Ng3 {[%emt 0:02:28]} g6 {[%emt 0:05:22]} 14. b3 {[%emt 0:12:40]} Bg7 {[%emt 0:07:20]} 15. Bb2 {[%emt 0:07:03]} Qc7 {[%emt 0:09:41]} 16. d4 {[%emt 0:06:26]} a5 {[%emt 0:07:18]} (16... d5 {feels hotter.} 17. dxe5 Nxe5 18. c4 Nxe4 19. Bxe5 Bxe5 20. Nxe5 Rxe5 21. Nxe4 dxe4 22. cxb5 Rd8) 17. dxe5 {[%emt 0:08:02]} dxe5 {[%emt 0:01:30]} 18. Qe2 {[%emt 0:03:02]} Bc6 {[%emt 0:03:02]} 19. Red1 {[%emt 0:02:54]} Nf8 {[%emt 0:02:00]} 20. c4 {[%emt 0:04:28]} N6d7 {[%emt 0:02:21]} 21. cxb5 {[%emt 0:00:51]} Bxb5 {[%emt 0:00:20]} 22. Bd3 {[%emt 0:01:00]} Bc6 {[%emt 0:00:11]} 23. Bc4 {[%emt 0:02:44]} Nb6 {[%emt 0:03:30]} 24. Ba3 {[%emt 0:03:06]} (24. Bd5 $5) 24... Nxc4 {[%emt 0:07:43]} 25. Qxc4 {[%emt 0:00:35]} Ne6 {[%emt 0:00:19]} 26. Rac1 {[%emt 0:00:52]} (26. Bxc5 $15 Bb5 27. Bd6) 26... Bf8 $17 {[%emt 0:04:30][%cal Oa5a4]} 27. Qc3 {[%emt 0:02:13]} (27. Nf1 $142) 27... f6 {[%emt 0:00:51]} 28. Nd2 {[%emt 0:01:06]} Kg7 {[%emt 0:02:39]} 29. Nc4 {[%emt 0:00:43]} Ra8 {[%emt 0:02:09]} (29... a4 $1 $17 30. bxa4 Bxa4) 30. Ne3 {[%emt 0:00:59]} Qb7 {[%emt 0:02:05]} 31. f3 {[%emt 0:01:50]} Red8 {[%emt 0:01:15]} 32. Rxd8 {[%emt 0:01:01]} Rxd8 {[%emt 0:00:06]} 33. Nc4 {[%emt 0:00:46]} a4 {[%emt 0:01:07]} 34. Na5 {[%emt 0:00:46]} Qb6 {[%emt 0:00:18]} 35. Nxc6 {[%emt 0:00:26]} Qxc6 {[%emt 0:00:57]} 36. b4 $2 {[%emt 0:00:31] [#]} (36. Nf1 $15) 36... c4 $2 {[%emt 0:05:38]} ({Better is} 36... Qb5 $1 $19 37. bxc5 Rd3) 37. Qxc4 {[%emt 0:02:58][%mdl 8192]} (37. Kh2 $15) 37... Rd1+ $2 {[%emt 0:00:09]} (37... Qxc4 $19 38. Rxc4 Rd2) 38. Nf1 $2 {[%emt 0:01:31] [#]} (38. Kh2 $15 Qxc4 39. Rxc4) 38... Qxc4 $1 $19 {[%emt 0:04:22][%mdl 64] Deflection} ({Weaker is} 38... Qb6+ 39. Kh2 Rd4 40. Qc8 $14 (40. Qc6 Qxc6 41. Rxc6 Rd6 $14)) 39. Rxc4 {[%emt 0:00:07]} Ra1 {[%emt 0:00:14]} 40. Rc2 $2 {[%emt 0:01:02]} (40. Bc1) 40... Nd4 {[%emt 0:00:25]} 41. Rc7+ {[%emt 0:22:14]} Kg8 {[%emt 0:00:11] Strongly threatening ...Bh6.} 42. Rc8 {[%emt 0:02:13][%cal Ob4b5]} Rxa2 {[%emt 0:00:24]} 43. Bc1 {[%emt 0:00:17]} Ne2+ {[%emt 0:02:07]} (43... Rc2 $142 44. Rxc2 Nxc2) 44. Kh2 {[%emt 0:00:23] Bh6 is the strong threat.} Nxc1 {[%emt 0:00:27]} 45. Rxc1 {[%emt 0:00:12]} Bxb4 {[%emt 0:00:30][%mdl 4096] Endgame And now ...a3 would win. KRB-KRN} 46. Ne3 {[%emt 0:01:01]} Bd2 {[%emt 0:04:35][%csl LRc1,LRe3]} 47. Rc8+ {[%emt 0:01:39]} Kf7 {[%emt 0:00:00]} 48. Nd5 {[%emt 0:02:01]} (48. Nc2 $17) 48... a3 {[%emt 0:00:00]} 49. Rc7+ {[%emt 0:02:11]} Ke6 {[%emt 0:00:00] aiming for ...Kd6.} 50. Ra7 $2 {[%emt 0:00:45]} (50. Rxh7 Bf4+ 51. Nxf4+ exf4 52. h4) 50... Kd6 {[%emt 0:00:03]} 51. Ra6+ {[%emt 0:01:28]} Kc5 {[%emt 0:00:11]} 52. Nxf6 {[%emt 0:00:35]} (52. Ra8 $142) 52... Kb5 {[%emt 0:00:18] ( -> ...Bf4+)} 53. Ra8 {[%emt 0:00:24]} Bf4+ {[%emt 0:04:06]} 54. Kg1 {[%emt 0:00:07]} Be3+ {[%emt 0:00:15]} (54... Bg3 $142 {[%cal Ra2a1]} 55. Kf1 Rf2+ 56. Ke1 a2 57. Nxh7 a1=Q+ 58. Rxa1 Ra2+ 59. Kf1 Rxa1+ 60. Ke2 Ra2+ 61. Kd3 Rxg2) 55. Kh2 {[%emt 0:00:27]} Bf4+ {[%emt 0:02:12]} (55... Bd2 $142 56. Nd5 Ba5) 56. Kg1 {[%emt 0:00:09]} Bg3 {[%emt 0:00:05][%cal Ra2a1]} 57. Rb8+ {[%emt 0:00:19]} Kc4 {[%emt 0:01:04]} 58. Rc8+ {[%emt 0:00:40]} Kd3 {[%emt 0:00:10]} 59. Rc1 {[%emt 0:00:12]} Kd2 {[%emt 0:00:44]} 60. Rf1 {[%emt 0:00:41]} Rc2 {[%emt 0:00:26]} 61. Nd5 {[%emt 0:00:26]} Rc1 {[%emt 0:01:06]} 62. Nb4 {[%emt 0:00:38]} Bf4 {[%emt 0:00:25]} (62... Rxf1+ $142 63. Kxf1 Kc3 64. Na2+ Kb2 65. Nb4 Kb3 66. Nd3 Kc3 67. Nc1 Kc2 68. Ke2 Kxc1 69. Kd3 a2 70. Kc4 a1=Q 71. Kc5 Qd4+ 72. Kc6 Qg1 73. Kd6 Qxg2 74. Ke6 Qxf3 75. h4 Qxe4 76. Kd6 Qf5 77. Kc7 e4+ 78. Kb6 e3 79. Kc6 e2 80. Kb6 e1=Q 81. Kc6 Qb4 82. h5 Qe6#) 63. Rxc1 {[%emt 0:00:26]} Kxc1 {[%emt 0:00:06]} 64. Kf1 {[%emt 0:00:20]} Bd2 {[%emt 0:00:08] Weighted Error Value: White=0.58/Black=0.47} 0-1

[Event "Swedish Championship U20 2022"]
[Site "Uppsala"]
[Date "2022.07.04"]
[Round "3.2"]
[White "Nord, Alexander"]
[Black "Ostlund, Joar"]
[Result "1/2-1/2"]
[ECO "C56"]
[WhiteElo "2200"]
[BlackElo "2222"]
[Annotator "RC"]
[PlyCount "59"]
[EventDate "2022.07.01"]
[EventType "tourn"]
[EventCountry "SWE"]
[SourceTitle "playchess.com"]
[Source "ChessBase"]
[SourceQuality "1"]
[TimeControl "40/5400+30:1800+30"]

1. e4 {[%emt 0:00:03]} e5 {[%emt 0:00:07]} 2. Nf3 {[%emt 0:00:04]} Nc6 {[%emt 0:00:08]} 3. d4 {[%emt 0:00:07]} exd4 {[%emt 0:00:09]} 4. Bc4 {[%emt 0:00:12]} Nf6 {[%emt 0:00:33]} 5. e5 {[%emt 0:00:10]} d5 {[%emt 0:00:20]} 6. Bb5 {[%emt 0:00:13]} Ne4 {[%emt 0:00:21]} 7. Nxd4 {[%emt 0:00:12]} Bd7 {[%emt 0:00:18]} 8. Bxc6 {[%emt 0:00:17]} bxc6 {[%emt 0:00:17]} 9. O-O {[%emt 0:00:15]} Bc5 {[%emt 0:00:30]} 10. f3 {[%emt 0:00:25]} Ng5 {[%emt 0:00:19]} 11. Be3 {[%emt 0:00:15]} Bb6 {[%emt 0:04:04]} 12. f4 {[%emt 0:00:18]} Ne4 {[%emt 0:00:13]} 13. Nd2 {[%emt 0:00:09]} Nxd2 {[%emt 0:00:35]} 14. Qxd2 {[%emt 0:00:07]} O-O {[%emt 0:00:40]} 15. Nb3 {[%emt 0:00:38]} f6 {[%emt 0:01:37]} 16. Bd4 {[%emt 0:01:03]} fxe5 {[%emt 0:03:15]} 17. fxe5 {[%emt 0:00:09]} Qe7 {[%emt 0:01:04]} 18. Qe3 {[%emt 0:02:31]} Bf5 {[%emt 0:11:02]} 19. c3 {[%emt 0:04:50]} Be4 {[%emt 0:06:52]} 20. Nc5 {[%emt 0:14:53]} Rfe8 {[%emt 0:19:18]} 21. Rf2 {[%emt 0:20:48]} h6 {[%emt 0:06:02]} 22. a3 {[%emt 0:06:47]} Kh7 {[%emt 0:09:38]} 23. Raf1 {[%emt 0:06:18]} Bg6 {[%emt 0:00:47]} 24. Re1 {[%emt 0:01:29]} Rf8 {[%emt 0:04:10]} 25. Rxf8 {[%emt 0:05:28]} Rxf8 {[%emt 0:00:32]} 26. b4 {[%emt 0:00:40]} Re8 {[%emt 0:07:59]} 27. h3 {[%emt 0:00:56]} Qh4 {[%emt 0:05:17]} 28. Nb3 {[%emt 0:06:10]} Be4 {[%emt 0:01:10]} 29. Nc5 {[%emt 0:03:38]} Bxc5 {[%emt 0:03:43]} 30. bxc5 {[%emt 0:00:53]} 1/2-1/2

[Event "Swedish Championship U20 2022"]
[Site "Uppsala"]
[Date "2022.07.04"]
[Round "3.4"]
[White "Seo, Jung Hyun"]
[Black "Rasti, Arvin"]
[Result "1/2-1/2"]
[ECO "B12"]
[WhiteElo "2102"]
[BlackElo "2136"]
[Annotator "NA RC"]
[PlyCount "78"]
[EventDate "2022.07.01"]
[EventType "tourn"]
[EventCountry "SWE"]
[SourceTitle "playchess.com"]
[Source "ChessBase"]
[SourceQuality "1"]
[TimeControl "40/5400+30:1800+30"]

1. e4 {[%emt 0:00:04]} c6 {[%emt 0:00:14]} 2. d4 {[%emt 0:00:06]} d5 {[%emt 0:00:06]} 3. e5 {[%emt 0:00:03]} c5 {[%emt 0:00:11]} 4. dxc5 {[%emt 0:00:03]} e6 {[%emt 0:00:06]} 5. a3 {[%emt 0:00:06]} Bxc5 {[%emt 0:00:13]} 6. b4 {[%emt 0:00:16]} Be7 {[%emt 0:00:19]} 7. Nf3 {[%emt 0:00:11]} Nd7 {[%emt 0:01:59]} 8. Bd3 {[%emt 0:05:00]} a5 {[%emt 0:01:59]} 9. b5 {[%emt 0:00:47]} Nc5 {[%emt 0:01:28]} 10. O-O {[%emt 0:01:11]} Nxd3 {[%emt 0:03:46]} 11. cxd3 {[%emt 0:01:43]} Bd7 {[%emt 0:05:35]} 12. a4 {[%emt 0:01:16]} Rc8 {[%emt 0:00:43]} 13. Bd2 {[%emt 0:02:44]} Bc5 {[%emt 0:02:45]} 14. d4 {[%emt 0:00:29]} Bb6 {[%emt 0:02:40]} 15. Nc3 {[%emt 0:23:17]} Ne7 {[%emt 0:01:59]} 16. Rc1 {[%emt 0:01:04]} Rc4 {[%emt 0:08:27]} 17. Bg5 {[%emt 0:06:41]} h6 {[%emt 0:05:19]} 18. Be3 {[%emt 0:11:35]} Qc7 {[%emt 0:05:36]} 19. Qb3 {[%emt 0:03:17]} Qb8 {[%emt 0:02:15]} 20. Na2 {[%emt 0:04:21]} Qc8 {[%emt 0:02:24]} 21. Rxc4 {[%emt 0:02:17]} dxc4 {[%emt 0:01:10]} 22. Qc2 {[%emt 0:02:21]} Nd5 {[%emt 0:01:08]} 23. Rc1 {[%emt 0:00:40]} Bd8 {[%emt 0:02:52]} 24. Qxc4 {[%emt 0:01:32]} Qxc4 {[%emt 0:00:23]} 25. Rxc4 {[%emt 0:00:05]} Nb6 {[%emt 0:00:06]} 26. Nd2 {[%emt 0:07:38]} O-O {[%emt 0:04:14]} 27. Nc3 {[%emt 0:00:56]} Nxc4 {[%emt 0:00:45]} 28. Nxc4 {[%emt 0:00:06]} Bc7 {[%emt 0:06:28]} 29. Ne4 {[%emt 0:00:38]} b6 {[%emt 0:01:22]} 30. Ned6 {[%emt 0:00:36]} Rb8 {[%emt 0:02:46]} 31. Kf1 {[%emt 0:04:39]} Bc8 {[%emt 0:02:58]} 32. Ke2 {[%emt 0:04:34]} Bb7 {[%emt 0:00:43]} 33. Nxb7 {[%emt 0:00:02]} Rxb7 {[%emt 0:00:06]} 34. Kd3 {[%emt 0:01:28]} Rb8 {[%emt 0:03:16]} 35. Bc1 {[%emt 0:04:36]} Kf8 {[%emt 0:01:54]} 36. g4 {[%emt 0:03:31]} Ke7 {[%emt 0:01:01]} 37. h3 {[%emt 0:01:22]} f6 {[%emt 0:02:27]} 38. Ba3+ {[%emt 0:01:22]} Kf7 {[%emt 0:00:42]} 39. f4 {[%emt 0:03:08]} fxe5 {[%emt 0:06:21]} 1/2-1/2

[Event "Swedish Championship U20 2022"]
[Site "Uppsala"]
[Date "2022.07.04"]
[Round "3.5"]
[White "Grahn, Vidar"]
[Black "Falkevall, Axel"]
[Result "0-1"]
[ECO "B87"]
[WhiteElo "2003"]
[BlackElo "2275"]
[Annotator "TA"]
[PlyCount "114"]
[EventDate "2022.07.01"]
[EventType "tourn"]
[EventCountry "SWE"]
[SourceTitle "playchess.com"]
[Source "ChessBase"]
[SourceQuality "1"]
[TimeControl "40/5400+30:1800+30"]

{[%evp 20,114,35,0,0,0,0,0,-2,-17,0,-12,0,0,0,-35,-22,-7,0,-42,-19,-90,-20,-94,-93,-81,-90,-96,-52,-111,-68,-80,-84,-78,-73,-64,-66,-177,-153,-343,-346,-333,-334,-355,-250,-239,-245,-238,-193,-555,-136,-159,-149,-166,-185,-279,-179,-175,-185,-168,-188,-182,-172,-246,-260,-281,-234,-326,-283,-719,-696,-10223,-5197,-29957,-863,-29964,-29960,-29966,-29964,-29954,-5193,-29975,-29976,-29976,-29977,-29971,-29973,-29975,-29976,-29974,-29968,-12831,-12832,-29983,-29984,-29984,-29985]} 1. e4 {[%emt 0:00:04]} c5 {[%emt 0:00:09]} 2. Nf3 {[%emt 0:00:06]} d6 {[%emt 0:00:06]} 3. d4 {[%emt 0:00:12]} cxd4 {[%emt 0:00:08]} 4. Nxd4 {[%emt 0:00:03]} Nf6 {[%emt 0:00:09]} 5. Nc3 {[%emt 0:00:04]} a6 {[%emt 0:00:09]} 6. Bc4 {[%emt 0:00:06]} e6 {[%emt 0:00:15]} 7. Bb3 {[%emt 0:00:04]} b5 {[%emt 0:00:27]} 8. O-O {[%emt 0:00:20]} Be7 {[%emt 0:00:20]} 9. Qf3 {[%emt 0:00:21]} Qb6 {[%emt 0:00:20]} 10. Be3 {[%emt 0:01:59]} Qb7 {[%emt 0:00:43]} 11. a3 {[%emt 0:03:11]} (11. Qg3 {seems wilder.} O-O 12. Bh6 Ne8 13. Rad1) 11... Nbd7 {[%emt 0:05:25][%cal Bb8d7,Bd7b6,Bb6c4][%mdl 32] B87: Sicilian Scheveningen/Najdorf: 6 Bc4, with early ...b5.} 12. Rfe1 {[%emt 0:04:10]} O-O {[%emt 0:02:51]} 13. Qg3 {[%emt 0:03:34][%cal Oc3d5]} Kh8 {[%emt 0:03:36] The position is equal.} (13... Nxe4 $2 14. Nxe4 Qxe4 15. Nxe6 $1 fxe6 16. Bg5 $18) 14. f3 {[%emt 0:01:41] [#]} Nb6 $146 {[%emt 0:10:18]} ({Predecessor:} 14... Nc5 15. Ba2 Qc7 16. Rad1 Bb7 17. Nce2 Rg8 18. Rc1 Na4 19. c4 Nxb2 20. cxb5 Qa5 {½-½ (59) Ruimy,M (2364)-Muri,H (2376) ICCF email 2007}) 15. a4 {[%emt 0:09:01]} b4 {[%emt 0:05:53]} 16. Na2 {[%emt 0:06:29]} d5 {[%emt 0:12:37]} 17. e5 {[%emt 0:04:04]} Nfd7 {[%emt 0:04:06]} 18. c3 $132 {[%emt 0:09:02][%mdl 2048] White is fighting back} bxc3 {[%emt 0:13:37]} 19. bxc3 {[%emt 0:10:07]} Nc4 {[%emt 0:03:44]} 20. Bg5 {[%emt 0:17:32]} (20. Bxc4 $11 {remains equal.} dxc4 21. Nb4) 20... Nc5 {[%emt 0:08:44]} (20... Bxg5 $17 21. Bxc4 Bd2) 21. Bc2 {[%emt 0:02:58]} (21. Bxc4 $11 {keeps the balance.} Bxg5 22. Qxg5 dxc4 23. Nb4) 21... Bxg5 $17 {[%emt 0:03:14]} 22. Qxg5 {[%emt 0:00:10]} h6 {[%emt 0:02:48]} 23. Qh4 {[%emt 0:03:45]} Bd7 {[%emt 0:03:19]} 24. Nc1 {[%emt 0:10:27]} (24. Nb4 $1 $15) 24... Qc7 {[%emt 0:04:51]} 25. f4 {[%emt 0:03:42]} Nd2 {[%emt 0:06:12]} 26. Re3 {[%emt 0:05:28]} Nce4 {[%emt 0:01:15]} 27. Nce2 {[%emt 0:00:54][%cal Bc1e2,Be2d4,Bd4f5][%mdl 32]} f6 {[%emt 0:01:48] Black is more active.} 28. Nf3 {[%emt 0:01:16]} (28. Bxe4 $15 Nxe4 29. exf6 Rxf6 30. Rc1) 28... Nxf3+ $19 {[%emt 0:01:13]} 29. gxf3 $2 {[%emt 0:00:19] This costs White the game.} (29. Rxf3 $17 fxe5 30. Bxe4 dxe4 31. Rf2) 29... Qc5 {[%emt 0:00:30]} 30. Nd4 {[%emt 0:00:18]} Nxc3 {[%emt 0:00:26]} 31. f5 {[%emt 0:00:46]} fxe5 {[%emt 0:01:05]} 32. Rxe5 {[%emt 0:00:10]} exf5 {[%emt 0:01:19]} 33. Qf2 {[%emt 0:01:47]} Rab8 {[%emt 0:01:32] White must now prevent ...Rb2.} 34. Bxf5 $2 {[%emt 0:00:59] [#]} (34. Rf1 {is a better chance.}) 34... Bxf5 $2 {[%emt 0:00:51]} (34... Rb2 $3 $19 {[%mdl 512]} 35. Qe3 Bxf5 36. Nxf5 Ne2+ 37. Kh1 Qc2 38. Qxe2 Qxe2 39. Rxe2 Rxe2) 35. Nxf5 $17 {[%emt 0:00:05]} Qxf2+ {[%emt 0:00:59]} 36. Kxf2 {[%emt 0:00:05]} Rb2+ {[%emt 0:00:59]} 37. Kg1 {[%emt 0:01:11]} (37. Ke3 {is the only way for White.}) 37... Re2 {[%emt 0:01:28]} 38. Rxe2 {[%emt 0:00:39]} Nxe2+ {[%emt 0:00:02]} 39. Kf2 {[%emt 0:00:17]} Rxf5 {[%emt 0:00:18]} 40. Kxe2 $19 {[%emt 0:00:05][%mdl 4096] Endgame KR-KR} Rh5 $1 {[%emt 0:00:10]} 41. Ke3 {[%emt 0:32:36]} (41. Rh1 $142) 41... Rxh2 {[%emt 0:04:39]} 42. Kd4 {[%emt 0:00:00]} Rd2+ {[%emt 0:03:38]} 43. Kc5 {[%emt 0:00:00]} d4 {[%emt 0:03:29]} 44. Kb6 $2 {[%emt 0:00:00]} (44. Kd5) 44... d3 {[%emt 0:02:59] aiming for ...Rc2.} 45. Kxa6 {[%emt 0:00:00] [#]} Rb2 {[%emt 0:01:02]} 46. a5 {[%emt 0:00:00]} d2 {[%emt 0:02:04]} (46... Kg8 $142 47. Ka7 d2 48. Rg1 Kf7 49. Rh1 Ke6 50. Rd1 Ke5 51. a6 h5 52. f4+ Kf5 53. Ka8 h4 54. Rf1 h3 55. Rd1 h2 56. a7 Rb4 57. Ra1 {[#]} Ra4 $3 {[%mdl 512]} 58. Rd1 Rb4 59. Rf1 Rxf4 60. Rh1 g5 61. Kb7 Rb4+ 62. Kc6 Ra4 63. Kd5 Rxa7 64. Rf1+ Kg4 65. Kd6 Kg3 66. Ke6 Kg2 67. Rd1 h1=Q 68. Rxd2+ Kf3 69. Kf5 Ra5+ 70. Kg6 Ra6+ 71. Kg7 Qh6+ 72. Kf7 Ra7+ 73. Rd7 Rxd7+ 74. Ke8 Qe6+ 75. Kf8 Qf7#) 47. Rd1 {[%emt 0:00:00]} Kg8 {[%emt 0:02:13]} 48. Ka7 {[%emt 0:00:00]} Kf7 {[%emt 0:00:48]} 49. a6 {[%emt 0:00:00]} Ke6 {[%emt 0:01:29] ( -> ...Kd5)} 50. Ka8 {[%emt 0:00:00]} Kd5 {[%emt 0:02:13]} 51. a7 {[%emt 0:00:00]} Kd4 {[%emt 0:01:50]} 52. f4 {[%emt 0:00:00]} Ra2 {[%emt 0:02:00]} 53. Kb8 {[%emt 0:00:00]} Kd3 {[%emt 0:01:12]} 54. Rg1 {[%emt 0:00:00]} Kc2 {[%emt 0:00:46]} 55. Rg2 {[%emt 0:00:00]} Kc1 {[%emt 0:00:41]} 56. f5 {[%emt 0:00:00] [#]} d1=Q $1 {[%emt 0:00:47]} 57. Rxa2 {[%emt 0:00:00]} Qb3+ {[%emt 0:00:09] Weighted Error Value: White=1.01/Black=0.40} 0-1